bitfinex/quotes_SOLUSD_20241013
["timestamp","ask_amount","ask_price","bid_price","bid_amount"]
[1728795335821,8.17949748,146.18,146.12,20.0]
[1728795335822,15.02039748,146.18,146.12,20.0]
[1728795336025,8.17949748,146.18,146.12,31.40198005]
[1728795336228,0.8701139,146.17,146.12,31.40198005]
[1728795339853,0.8701139,146.17,146.14,20.0]
[1728795344052,7.30938358,146.16,146.12,20.0]
[1728795344353,0.8701139,146.15,146.12,31.40198005]
[1728795348157,7.30938358,146.16,146.12,31.40198005]
[1728795348365,8.17949748,146.16,146.12,20.0]
[1728795348534,8.17949748,146.16,146.12,21.36852893]
[1728795349351,7.30938358,146.16,146.12,21.36852893]
[1728795350248,7.30938358,146.16,146.13,20.0]
[1728795351537,8.17949748,146.18,146.13,32.77050658]
[1728795352666,8.17949748,146.18,146.14,1.36844169]
[1728795353161,8.17949748,146.18,146.13,31.40198005]
[1728795363565,7.30938358,146.18,146.13,31.40198005]
[1728795363766,0.8701139,146.19,146.13,31.40198005]
[1728795368171,0.8701139,146.19,146.15,11.40198005]
[1728795368373,8.17949748,146.2,146.15,11.40198005]
[1728795369481,8.17949748,146.2,146.13,20.0]
[1728795369770,7.30938358,146.15,146.08,11.40198005]
[1728795370078,0.8701139,146.14,146.08,11.40198005]
[1728795371146,0.8701139,146.14,146.09,20.0]
[1728795371968,0.8701139,146.14,146.09,11.40198005]
[1728795372469,0.8701139,146.14,146.1,20.0]
[1728795376477,0.8701139,146.14,146.1,12.77071801]
[1728795376659,0.8701139,146.14,146.11,20.0]
[1728795376974,7.30938358,146.15,146.12,11.40198005]
[1728795377351,7.30938358,146.15,146.11,31.40198005]
[1728795377477,0.8701139,146.14,146.11,31.40198005]
[1728795377652,0.8701139,146.14,146.1,11.40198005]
[1728795377985,8.17949748,146.15,146.11,20.0]
[1728795378967,7.30938358,146.15,146.11,20.0]
[1728795379780,0.8701139,146.16,146.12,11.40198005]
[1728795383379,0.8701139,146.16,146.11,11.40198005]
[1728795383552,0.8701139,146.16,146.12,21.36856244]
[1728795388583,0.8701139,146.16,146.12,20.0]
[1728795389675,0.8701139,146.16,146.12,21.36855785]
[1728795391466,0.8701139,146.16,146.12,20.0]
[1728795392780,0.8701139,146.16,146.12,21.36855859]
[1728795392991,0.8701139,146.16,146.12,20.0]
[1728795398299,0.8701139,146.16,146.09,20.0]
[1728795398477,7.30938358,146.15,146.11,20.0]
[1728795398674,0.8701139,146.14,146.11,31.40198005]
[1728795398892,8.17949748,146.15,146.11,31.40198005]
[1728795399195,8.17949748,146.15,146.06,20.0]
[1728795399497,8.17949748,146.15,146.12,20.0]
[1728795399792,7.30938358,146.15,146.12,20.0]
[1728795400476,0.8701139,146.14,146.12,20.0]
[1728795400669,7.30938358,146.15,146.12,20.0]
[1728795400979,8.17949748,146.15,146.12,20.0]
[1728795401696,8.17949748,146.15,146.06,20.0]
[1728795401883,0.8701139,146.14,146.11,20.0]
[1728795402073,8.17949748,146.15,146.11,20.0]
[1728795403289,8.17949748,146.15,146.11,21.36862591]
[1728795403691,8.17949748,146.15,146.11,12.77060596]
[1728795403872,8.17949748,146.15,146.12,20.0]
[1728795404068,7.30938358,146.15,146.12,20.0]
[1728795407976,0.8701139,146.14,146.12,20.0]
[1728795408197,8.17949748,146.15,146.12,20.0]
[1728795409399,7.30938358,146.15,146.12,20.0]
[1728795431918,7.30938358,146.15,146.1,20.0]
[1728795432390,7.30938358,146.15,146.11,1.36862813]
[1728795433121,0.8701139,146.16,146.11,1.36862813]
[1728795433696,0.8701139,146.16,146.11,12.77060818]
[1728795433923,0.8701139,146.16,146.12,20.0]
[1728795434298,0.8701139,146.16,146.12,21.3685437]
[1728795435290,0.8701139,146.16,146.12,20.0]
[1728795436207,0.8701139,146.16,146.12,21.36854782]
[1728795441922,0.8701139,146.16,146.12,20.0]
[1728795443020,7.30938358,146.1,146.04,13.15622677]
[1728795443326,0.8701139,146.09,146.05,11.40198005]
[1728795444728,0.8701139,146.09,146.06,20.0]
[1728795448724,8.17949748,146.12,146.07,11.40198005]
[1728795448999,8.17949748,146.12,146.08,1.36898425]
[1728795449234,8.17949748,146.12,146.08,21.36898425]
[1728795449526,8.17949748,146.12,146.08,32.7709643]
[1728795449703,8.17949748,146.12,146.09,20.0]
[1728795452854,7.30938358,146.14,146.1,12.77089466]
[1728795453033,8.17949748,146.14,146.1,12.77089466]
[1728795453422,8.17949748,146.14,146.1,11.40198005]
[1728795454065,0.8701139,146.13,146.1,11.40198005]
[1728795456862,0.8701139,146.15,146.12,11.40198005]
[1728795457531,24.71849748,146.16,146.13,11.40198005]
[1728795458470,0.8701139,146.15,146.13,11.40198005]
[1728795459045,7.30938358,146.16,146.13,11.40198005]
[1728795461378,0.8701139,146.15,146.12,11.40198005]
[1728795462788,7.30938358,146.16,146.12,11.40198005]
[1728795471877,0.8701139,146.15,146.12,11.40198005]
[1728795472683,7.30938358,146.16,146.12,11.40198005]
[1728795480082,0.8701139,146.15,146.12,11.40198005]
[1728795480263,0.8701139,146.15,146.11,20.0]
[1728795480462,0.8701139,146.15,146.12,11.40198005]
[1728795481164,7.30938358,146.14,146.1,11.40198005]
[1728795481365,7.30938358,146.14,146.11,20.0]
[1728795482167,0.8701139,146.15,146.12,11.40198005]
[1728795484181,7.30938358,146.14,146.12,11.40198005]
[1728795487075,7.30938358,146.17,146.12,11.40198005]
[1728795487281,0.8701139,146.16,146.12,11.40198005]
[1728795487868,0.8701139,146.16,146.14,11.40198005]
[1728795488076,8.17949748,146.17,146.14,11.40198005]
[1728795489280,7.30938358,146.17,146.14,11.40198005]
[1728795491978,0.8701139,146.16,146.14,11.40198005]
[1728795492282,0.8701139,146.16,146.12,20.0]
[1728795492481,0.8701139,146.16,146.12,31.40198005]
[1728795494484,8.17949748,146.17,146.12,32.77046617]
[1728795496279,7.30938358,146.17,146.14,11.40198005]
[1728795496484,0.8701139,146.18,146.15,11.40198005]
[1728795497099,8.17949748,146.19,146.15,11.40198005]
[1728795503911,8.17949748,146.19,146.14,20.0]
[1728795506314,8.17949748,146.19,146.14,21.3683301]
[1728795507613,8.17949748,146.19,146.15,12.77028213]
[1728795508111,7.30938358,146.19,146.15,12.77028213]
[1728795509010,8.17949748,146.19,146.15,12.77028213]
[1728795509255,0.8701139,146.2,146.17,11.40198005]
[1728795512094,7.30938358,146.19,146.15,11.40198005]
[1728795512414,0.8701139,146.18,146.14,11.40198005]
[1728795512600,0.8701139,146.18,146.13,11.40198005]
[1728795512791,0.8701139,146.18,146.14,20.0]
[1728795517296,7.30938358,146.17,146.14,20.0]
[1728795522522,7.30938358,146.17,146.14,11.40198005]
[1728795564368,7.30938358,146.17,146.12,31.40198005]
[1728795565049,7.30938358,146.17,146.14,11.40198005]
[1728795575457,0.8701139,146.18,146.14,11.40198005]
[1728795575664,7.30938358,146.19,146.16,11.40198005]
[1728795575866,8.17949748,146.19,146.16,11.40198005]
[1728795580387,8.17949748,146.19,146.14,11.40198005]
[1728795581181,7.30938358,146.17,146.14,11.40198005]
[1728795581884,0.8701139,146.16,146.12,20.0]
[1728795582076,0.8701139,146.16,146.13,20.0]
[1728795587887,0.8701139,146.16,146.13,11.40198005]
[1728795588588,8.17949748,146.17,146.15,11.40198005]
[1728795589684,7.30938358,146.17,146.15,11.40198005]
[1728795590091,7.30938358,146.17,146.1,1.36843403]
[1728795590274,0.8701139,146.16,146.13,11.40198005]
[1728795593592,8.17949748,146.17,146.14,11.40198005]
[1728795594570,0.8701139,146.16,146.14,11.40198005]
[1728795594893,8.17949748,146.17,146.14,11.40198005]
[1728795595995,7.30938358,146.17,146.14,11.40198005]
[1728795596304,0.8701139,146.16,146.14,11.40198005]
[1728795597991,8.17949748,146.17,146.14,11.40198005]
[1728795598375,16.2922,146.19,146.16,11.40198005]
[1728795598694,8.17949748,146.2,146.16,11.40198005]
[1728795599081,8.17949748,146.2,146.17,11.40198005]
[1728795600005,15.01979748,146.2,146.15,11.40198005]
[1728795629909,6.8405,146.19,146.15,11.40198005]
[1728795629998,7.7106139,146.19,146.15,11.40198005]
[1728795642451,7.30938358,146.18,146.13,20.0]
[1728795642626,7.7118139,146.17,146.13,20.0]
[1728795642827,7.30938358,146.16,146.13,20.0]
[1728795643140,0.8701139,146.15,146.13,20.0]
[1728795644550,0.8701139,146.15,146.08,15.0706]
[1728795644853,7.7125139,146.15,146.11,11.40198005]
[1728795650363,14.15218358,146.14,146.09,20.0]
[1728795650534,0.8701139,146.13,146.09,11.40198005]
[1728795653240,0.8701139,146.13,146.1,11.40198005]
[1728795654642,0.8701139,146.13,146.1,12.77075233]
[1728795655152,7.30938358,146.12,146.07,20.0]
[1728795655361,7.30938358,146.12,146.09,11.40198005]
[1728795657054,0.8701139,146.11,146.09,11.40198005]
[1728795657259,0.8701139,146.11,146.09,20.0]
[1728795658057,8.17949748,146.12,146.09,20.0]
[1728795658251,8.17949748,146.12,146.09,11.40198005]
[1728795658958,8.17949748,146.12,146.07,20.0]
[1728795659204,7.30938358,146.12,146.09,11.40198005]
[1728795662554,0.8701139,146.11,146.09,11.40198005]
[1728795662738,8.17949748,146.12,146.09,20.0]
[1728795663865,7.30938358,146.12,146.09,20.0]
[1728795664845,7.30938358,146.12,146.08,11.40198005]
[1728795669771,7.30938358,146.12,146.09,11.40198005]
[1728795675487,0.8701139,146.13,146.09,11.40198005]
[1728795675697,16.3566,146.15,146.11,11.40198005]
[1728795675868,17.2267139,146.15,146.11,11.40198005]
[1728795676068,0.8701139,146.15,146.11,11.40198005]
[1728795676570,8.17949748,146.16,146.12,12.77061635]
[1728795677292,7.30938358,146.16,146.12,12.77061635]
[1728795678891,0.8701139,146.17,146.14,11.40198005]
[1728795679471,7.30938358,146.18,146.14,11.40198005]
[1728795679776,8.17949748,146.18,146.14,11.40198005]
[1728795685592,15.02039748,146.18,146.13,11.40198005]
[1728795687788,8.17949748,146.18,146.14,11.40198005]
[1728795700609,8.17949748,146.18,146.15,11.40198005]
[1728795700804,7.30938358,146.18,146.15,11.40198005]
[1728795700985,7.30938358,146.18,146.16,11.40198005]
[1728795702076,7.30938358,146.2,146.16,11.40198005]
[1728795702396,0.8701139,146.21,146.17,11.40198005]
[1728795706701,0.8701139,146.21,146.18,11.40198005]
[1728795708206,8.17949748,146.22,146.18,11.40198005]
[1728795709410,0.8701139,146.23,146.19,11.40198005]
[1728795710306,0.8701139,146.23,146.13,22.3782]
[1728795710307,0.8701139,146.23,146.18,11.40198005]
[1728795710510,0.8701139,146.23,146.19,11.40198005]
[1728795716597,0.8701139,146.23,146.14,43.776884]
[1728795716801,7.30938358,146.22,146.14,43.776884]
[1728795717006,0.8701139,146.21,146.18,11.40198005]
[1728795721603,0.8701139,146.21,146.14,43.776884]
[1728795721604,0.8701139,146.21,146.19,11.40198005]
[1728795721811,0.8701139,146.21,146.14,43.776884]
[1728795722024,0.8701139,146.21,146.18,20.0]
[1728795730003,0.8701139,146.21,146.19,11.40198005]
[1728795730206,8.17949748,146.22,146.19,11.40198005]
[1728795730396,7.30938358,146.22,146.19,11.40198005]
[1728795730932,0.8701139,146.21,146.19,11.40198005]
[1728795731313,0.8701139,146.23,146.19,11.40198005]
[1728795731708,7.30938358,146.22,146.19,11.40198005]
[1728795732736,0.8701139,146.23,146.19,11.40198005]
[1728795735411,0.8701139,146.23,146.2,11.40198005]
[1728795738335,0.8701139,146.24,146.21,11.40198005]
[1728795738525,0.8701139,146.25,146.21,11.40198005]
[1728795743945,0.8701139,146.25,146.22,11.40198005]
[1728795744248,8.17949748,146.26,146.22,11.40198005]
[1728795757856,15.01659748,146.26,146.2,11.40198005]
[1728795760082,7.30938358,146.23,146.2,11.40198005]
[1728795760349,0.8701139,146.22,146.2,11.40198005]
[1728795768567,8.17949748,146.23,146.2,11.40198005]
[1728795769383,7.30938358,146.23,146.2,11.40198005]
[1728795777576,8.17949748,146.25,146.2,11.40198005]
[1728795788403,7.30938358,146.23,146.2,11.40198005]
[1728795788584,7.30938358,146.23,146.17,22.0601]
[1728795788585,0.8701139,146.22,146.18,20.0]
[1728795788905,0.8701139,146.22,146.18,31.40198005]
[1728795792601,0.8701139,146.22,146.2,11.40198005]
[1728795798010,7.30938358,146.23,146.2,11.40198005]
[1728795798691,0.8701139,146.24,146.2,11.40198005]
[1728795817153,23.63379748,146.25,146.22,11.40198005]
[1728795818408,23.63379748,146.25,146.21,11.40198005]
[1728795822838,8.17949748,146.25,146.21,11.40198005]
[1728795837467,8.17949748,146.25,146.18,20.0]
[1728795837667,8.17949748,146.25,146.2,20.0]
[1728795841273,6.8388,146.23,146.2,20.0]
[1728795841469,8.17949748,146.25,146.2,20.0]
[1728795847869,8.17949748,146.25,146.18,20.0]
[1728795848065,8.17949748,146.25,146.2,11.40198005]
[1728795855867,7.30938358,146.23,146.18,20.0]
[1728795856069,0.8701139,146.22,146.18,20.0]
[1728795857178,0.8701139,146.22,146.18,11.40198005]
[1728795857382,0.8701139,146.22,146.19,20.0]
[1728795862689,0.8701139,146.22,146.19,31.40198005]
[1728795862989,0.8701139,146.22,146.18,11.40198005]
[1728795863200,0.8701139,146.22,146.19,20.0]
[1728795864016,7.30938358,146.21,146.19,20.0]
[1728795864181,0.8701139,146.2,146.19,20.0]
[1728795864801,0.8701139,146.2,146.14,20.0]
[1728795865310,0.8701139,146.2,146.18,20.0]
[1728795870416,7.30938358,146.21,146.19,20.0]
[1728795871329,0.8701139,146.2,146.16,11.40198005]
[1728795871524,0.8701139,146.2,146.15,11.40198005]
[1728795873710,0.8701139,146.2,146.16,20.0]
[1728795874547,7.30938358,146.19,146.16,20.0]
[1728795874701,7.30938358,146.19,146.14,20.0]
[1728795874901,0.8701139,146.18,146.16,20.0]
[1728795877340,7.30938358,146.19,146.16,31.40198005]
[1728795881541,0.8701139,146.18,146.16,31.40198005]
[1728795884741,7.30938358,146.19,146.16,31.40198005]
[1728795888649,0.8701139,146.18,146.14,31.40198005]
[1728795888848,0.8701139,146.18,146.16,20.0]
[1728795894146,0.8701139,146.18,146.15,11.40198005]
[1728795894324,0.8701139,146.18,146.16,20.0]
[1728795895137,7.30938358,146.19,146.16,20.0]
[1728795896148,0.8701139,146.18,146.16,20.0]
[1728795899964,0.8701139,146.18,146.1,6.327]
[1728795900134,0.8701139,146.18,146.14,20.0]
[1728795900453,7.30938358,146.17,146.14,20.0]
[1728795900653,0.8701139,146.16,146.11,11.40198005]
[1728795902268,0.8701139,146.16,146.12,20.0]
[1728795902530,0.8701139,146.16,146.12,11.40198005]
[1728795902673,0.8701139,146.16,146.13,20.0]
[1728795908280,16.5162139,146.16,146.1,20.0]
[1728795908499,16.5162139,146.16,146.12,20.0]
[1728795908688,0.8701139,146.16,146.12,20.0]
[1728795910588,7.30938358,146.17,146.13,32.77053815]
[1728795910841,7.30938358,146.17,146.14,11.40198005]
[1728795911963,8.17949748,146.19,146.15,11.40198005]
[1728795914207,7.30938358,146.21,146.16,12.77025718]
[1728795914560,8.17949748,146.21,146.17,11.40198005]
[1728795930983,0.8701139,146.2,146.17,11.40198005]
[1728795936781,7.30938358,146.21,146.19,11.40198005]
[1728795943312,8.17949748,146.23,146.19,11.40198005]
[1728795944796,8.17949748,146.23,146.2,11.40198005]
[1728795946300,8.17949748,146.23,146.21,11.40198005]
[1728795946494,0.8701139,146.22,146.19,11.40198005]
[1728795950113,0.8701139,146.22,146.2,11.40198005]
[1728795961754,8.17949748,146.25,146.2,11.40198005]
[1728795962034,7.30938358,146.23,146.2,11.40198005]
[1728795962229,0.8701139,146.22,146.2,11.40198005]
[1728795964952,7.30938358,146.23,146.2,11.40198005]
[1728795974735,7.30938358,146.25,146.2,11.40198005]
[1728795975023,0.8701139,146.24,146.2,11.40198005]
[1728795975845,0.8701139,146.24,146.21,11.40198005]
[1728795976274,8.17949748,146.25,146.22,11.40198005]
[1728795977362,7.30938358,146.25,146.22,11.40198005]
[1728795977848,0.8701139,146.24,146.2,11.40198005]
[1728795994741,0.8701139,146.24,146.2,20.0]
[1728795999482,0.8701139,146.24,146.21,11.40198005]
[1728796001272,7.30938358,146.25,146.21,11.40198005]
[1728796007594,7.30938358,146.25,146.22,11.40198005]
[1728796012889,0.8701139,146.24,146.2,11.40198005]
[1728796013086,0.8701139,146.24,146.21,20.0]
[1728796022923,7.30938358,146.23,146.15,15.1424]
[1728796023114,0.8701139,146.22,146.19,20.0]
[1728796023643,0.8701139,146.22,146.19,31.40198005]
[1728796030117,0.8701139,146.22,146.2,11.40198005]
[1728796030418,0.8701139,146.22,146.21,20.0]
[1728796030828,7.30938358,146.25,146.21,31.40198005]
[1728796031034,0.8701139,146.24,146.22,11.40198005]
[1728796031345,7.30938358,146.25,146.23,11.40198005]
[1728796031507,7.30938358,146.25,146.22,11.40198005]
[1728796042817,0.8701139,146.24,146.22,11.40198005]
[1728796043938,0.8701139,146.24,146.2,11.40198005]
[1728796044236,0.8701139,146.24,146.21,20.0]
[1728796046729,7.30938358,146.23,146.18,20.0]
[1728796046927,0.8701139,146.22,146.18,20.0]
[1728796047320,0.8701139,146.22,146.19,11.40198005]
[1728796047532,7.30938358,146.23,146.2,20.0]
[1728796047737,7.30938358,146.25,146.21,11.40198005]
[1728796047917,0.8701139,146.24,146.21,11.40198005]
[1728796064959,0.8701139,146.24,146.16,20.0]
[1728796065127,0.8701139,146.24,146.19,11.40198005]
[1728796065128,7.30938358,146.23,146.19,11.40198005]
[1728796065332,7.30938358,146.23,146.2,20.0]
[1728796101705,7.30938358,146.25,146.2,20.0]
[1728796102005,0.8701139,146.24,146.2,21.36782622]
[1728796102606,0.8701139,146.24,146.21,11.40198005]
[1728796112705,7.30938358,146.23,146.19,11.40198005]
[1728796112914,7.30938358,146.23,146.2,20.0]
[1728796133327,7.30938358,146.23,146.2,11.40198005]
[1728796133934,7.30938358,146.23,146.21,20.0]
[1728796145208,7.30938358,146.25,146.22,11.40198005]
[1728796145298,7.30938358,146.25,146.22,12.76962779]
[1728796145544,7.30938358,146.25,146.22,11.40198005]
[1728796150154,7.30938358,146.25,146.21,11.40198005]
[1728796150348,0.8701139,146.24,146.21,11.40198005]
[1728796150657,7.30938358,146.25,146.21,11.40198005]
[1728796152441,0.8701139,146.24,146.21,11.40198005]
[1728796153660,0.8701139,146.24,146.16,20.0]
[1728796153856,7.30938358,146.23,146.2,11.40198005]
[1728796154058,7.30938358,146.23,146.21,20.0]
[1728796159069,7.30938358,146.23,146.16,20.0]
[1728796159279,0.8701139,146.22,146.2,20.0]
[1728796160237,7.30938358,146.23,146.2,20.0]
[1728796161269,7.30938358,146.23,146.2,11.40198005]
[1728796161465,7.30938358,146.23,146.21,20.0]
[1728796163668,8.17949748,146.25,146.21,20.0]
[1728796163974,7.30938358,146.25,146.21,20.0]
[1728796164353,7.30938358,146.25,146.21,21.3677182]
[1728796165007,7.30938358,146.25,146.21,1.3677182]
[1728796165357,7.30938358,146.25,146.21,21.3677182]
[1728796167557,7.30938358,146.25,146.22,11.40198005]
[1728796181975,7.30938358,146.25,146.22,12.76955174]
[1728796182413,8.17949748,146.27,146.22,11.40198005]
[1728796205536,8.17949748,146.27,146.21,31.40198005]
[1728796208135,8.17949748,146.27,146.19,20.0]
[1728796208340,8.17949748,146.27,146.22,20.0]
[1728796208846,7.30938358,146.25,146.22,20.0]
[1728796209030,0.8701139,146.24,146.22,20.0]
[1728796209424,7.30938358,146.25,146.22,20.0]
[1728796216952,8.17949748,146.27,146.23,11.40198005]
[1728796217541,8.17949748,146.27,146.19,20.0]
[1728796217733,8.17949748,146.27,146.22,20.0]
[1728796218739,8.17949748,146.27,146.23,11.40198005]
[1728796221035,8.17949748,146.27,146.24,11.40198005]
[1728796224643,8.17949748,146.27,146.23,11.40198005]
[1728796231658,8.17949748,146.27,146.23,11.40198005]
[1728796265006,7.30938358,146.27,146.23,11.40198005]
[1728796269397,0.8701139,146.26,146.23,11.40198005]
[1728796269577,0.8701139,146.26,146.19,20.0]
[1728796269784,0.8701139,146.26,146.22,20.0]
[1728796270297,8.17949748,146.27,146.22,21.36759105]
[1728796270476,7.30938358,146.27,146.23,12.76951933]
[1728796270679,7.30938358,146.27,146.23,11.40198005]
[1728796270878,7.30938358,146.27,146.23,12.76948457]
[1728796275979,7.30938358,146.27,146.23,11.40198005]
[1728796277211,7.30938358,146.27,146.24,1.36744027]
[1728796280924,7.30938358,146.27,146.23,11.40198005]
[1728796281495,7.30938358,146.27,146.24,1.36743131]
[1728796284508,7.30938358,146.27,146.23,11.40198005]
[1728796289717,7.30938358,146.27,146.22,20.0]
[1728796289718,8.17949748,146.29,146.25,11.40198005]
[1728796289897,7.30938358,146.29,146.26,1.36728001]
[1728796290097,7.30938358,146.29,146.25,11.40198005]
[1728796291425,7.30938358,146.29,146.26,1.36728814]
[1728796291801,7.30938358,146.29,146.26,11.40198005]
[1728796295719,0.8701139,146.28,146.26,11.40198005]
[1728796296926,7.30938358,146.29,146.26,11.40198005]
[1728796297225,8.17949748,146.29,146.26,11.40198005]
[1728796298324,0.8701139,146.28,146.26,11.40198005]
[1728796299725,7.30938358,146.29,146.26,11.40198005]
[1728796307815,1.7259488,146.3,146.26,11.40198005]
[1728796309436,0.8558349,146.3,146.23,1.36720844]
[1728796309626,0.8558349,146.3,146.27,11.40198005]
[1728796310335,0.8558349,146.3,146.22,35.9806]
[1728796310543,0.8558349,146.3,146.27,11.40198005]
[1728796311938,1.7259488,146.3,146.27,11.40198005]
[1728796312944,1.7259488,146.3,146.28,11.40198005]
[1728796322746,0.8558349,146.3,146.28,11.40198005]
[1728796325947,1.7259488,146.3,146.28,11.40198005]
[1728796334953,0.8558349,146.3,146.28,11.40198005]
[1728796335549,1.7259488,146.3,146.28,11.40198005]
[1728796336036,0.8558349,146.3,146.28,11.40198005]
[1728796340059,1.7259488,146.3,146.28,11.40198005]
[1728796340636,0.8558349,146.3,146.29,11.40198005]
[1728796345853,0.8558349,146.3,146.29,31.40198005]
[1728796350041,16.1967,146.36,146.29,31.40198005]
[1728796350242,17.0668139,146.36,146.34,11.40198005]
[1728796350456,0.8701139,146.36,146.34,11.40198005]
[1728796350655,12.6243878,146.37,146.34,11.40198005]
[1728796351242,7.30938358,146.37,146.34,11.40198005]
[1728796353346,7.30938358,146.37,146.33,11.40198005]
[1728796354751,7.30938358,146.37,146.34,11.40198005]
[1728796359192,7.30938358,146.37,146.33,11.40198005]
[1728796369393,7.30938358,146.37,146.34,11.40198005]
[1728796374811,7.30938358,146.37,146.35,11.40198005]
[1728796375118,7.30938358,146.39,146.36,11.40198005]
[1728796375424,7.30938358,146.41,146.37,12.76829414]
[1728796376520,7.30938358,146.41,146.37,11.40198005]
[1728796384703,7.30938358,146.41,146.36,11.40198005]
[1728796385043,7.30938358,146.41,146.37,20.0]
[1728796391228,7.30938358,146.41,146.37,11.40198005]
[1728796394721,7.30938358,146.41,146.38,11.40198005]
[1728796402751,7.30938358,146.41,146.39,11.40198005]
[1728796409127,7.30938358,146.43,146.4,11.40198005]
[1728796421064,7.30938358,146.43,146.39,11.40198005]
[1728796421234,7.30938358,146.43,146.36,4.09754484]
[1728796421235,7.30938358,146.43,146.4,11.40198005]
[1728796424643,0.8558349,146.45,146.41,11.40198005]
[1728796425341,0.8558349,146.45,146.42,11.40198005]
[1728796427270,0.8558349,146.45,146.44,11.40198005]
[1728796431674,0.8558349,146.45,146.43,11.40198005]
[1728796434981,0.8558349,146.45,146.38,16.1629]
[1728796435184,0.8558349,146.45,146.42,11.40198005]
[1728796436062,0.8558349,146.45,146.43,11.40198005]
[1728796439759,0.8558349,146.45,146.42,11.40198005]
[1728796445480,0.8558349,146.45,146.41,11.40198005]
[1728796445872,0.8558349,146.45,146.42,20.0]
[1728796452983,0.8558349,146.45,146.42,21.36580577]
[1728796453289,0.8558349,146.45,146.42,20.0]
[1728796454702,0.8558349,146.45,146.42,11.40198005]
[1728796455000,0.8558349,146.45,146.43,20.0]
[1728796463501,0.8558349,146.45,146.42,11.40198005]
[1728796463882,0.8558349,146.45,146.43,20.0]
[1728796476999,0.8558349,146.45,146.39,20.0]
[1728796477217,0.8558349,146.45,146.42,20.0]
[1728796479010,0.8558349,146.45,146.39,20.0]
[1728796479218,0.8558349,146.45,146.39,31.40198005]
[1728796483834,0.8558349,146.45,146.41,11.40198005]
[1728796484212,0.8558349,146.45,146.42,20.0]
[1728796486730,0.8558349,146.45,146.42,21.36575359]
[1728796488831,0.8558349,146.45,146.42,20.0]
[1728796493347,0.8558349,146.45,146.42,21.36579767]
[1728796493536,0.8558349,146.45,146.42,20.0]
[1728796493735,0.8558349,146.45,146.42,21.36579769]
[1728796495048,0.8558349,146.45,146.42,20.0]
[1728796496145,0.8558349,146.45,146.42,21.3657991]
[1728796499255,0.8558349,146.45,146.42,20.0]
[1728796500631,0.8558349,146.45,146.43,1.36564052]
[1728796501856,0.8558349,146.45,146.42,20.0]
[1728796506560,0.8558349,146.45,146.43,1.36565509]
[1728796510463,0.8558349,146.45,146.43,11.40198005]
[1728796511340,0.8558349,146.45,146.44,1.36557632]
[1728796511554,0.8558349,146.45,146.44,31.40198005]
[1728796516062,0.8558349,146.45,146.44,32.76726751]
[1728796516952,0.8558349,146.45,146.44,31.40198005]
[1728796521855,0.8558349,146.45,146.44,32.76727477]
[1728796522287,0.8558349,146.45,146.44,31.40198005]
[1728796523368,0.8558349,146.45,146.44,32.76727351]
[1728796524070,0.8558349,146.45,146.44,31.40198005]
[1728796524872,0.8558349,146.45,146.42,24.12510406]
[1728796525062,0.8558349,146.45,146.44,31.40198005]
[1728796534653,0.8558349,146.45,146.44,32.76741573]
[1728796535882,0.8558349,146.45,146.44,31.40198005]
[1728796542360,0.8558349,146.45,146.44,55.17886405]
[1728796543262,29.33738358,146.53,146.45,20.0]
[1728796543588,29.33738358,146.53,146.49,11.40198005]
[1728796544087,23.19528358,146.53,146.5,11.40198005]
[1728796552199,7.30938358,146.55,146.51,31.40198005]
[1728796552384,7.30938358,146.57,146.53,11.40198005]
[1728796552571,7.30938358,146.57,146.54,11.40198005]
[1728796556705,7.30938358,146.57,146.53,11.40198005]
[1728796563001,15.1931,146.58,146.54,20.0]
[1728796565683,7.30938358,146.57,146.54,20.0]
[1728796566399,15.1931,146.58,146.54,20.0]
[1728796568605,7.30938358,146.57,146.54,20.0]
[1728796569500,15.1931,146.58,146.54,20.0]
[1728796570879,8.26521848,146.59,146.54,20.0]
[1728796571495,8.26521848,146.59,146.54,21.3646854]
[1728796572088,8.26521848,146.59,146.5,31.29432514]
[1728796572274,8.26521848,146.59,146.54,11.40198005]
[1728796572476,0.9558349,146.59,146.55,1.36455539]
[1728796572681,0.9558349,146.59,146.55,12.76653544]
[1728796573304,0.9558349,146.59,146.55,11.40198005]
[1728796573986,0.9558349,146.59,146.57,11.40198005]
[1728796576299,0.9558349,146.59,146.57,20.0]
[1728796583500,0.9558349,146.59,146.56,20.0]
[1728796585407,8.26521848,146.59,146.52,20.0]
[1728796585606,8.26521848,146.59,146.56,20.0]
[1728796585809,0.9558349,146.59,146.56,20.0]
[1728796588700,0.9558349,146.59,146.57,11.40198005]
[1728796588905,0.9558349,146.59,146.55,11.40198005]
[1728796589117,0.9558349,146.59,146.56,20.0]
[1728796596534,8.26521848,146.59,146.52,20.0]